bitfinex-derivatives/quotes_ETHF0:USTF0_20260113
["timestamp","ask_amount","ask_price","bid_price","bid_amount"]
[1768312263594,0.99594042,3144.8,3143.9,0.13978595]
[1768312263795,0.15911,3145.5,3143.9,0.13978595]
[1768312263996,0.99617024,3145.4,3143.9,0.13978595]
[1768312264195,0.99617024,3145.3,3143.9,0.13978595]
[1768312264401,0.99617024,3145.2,3143.9,0.13978595]
[1768312264600,0.99617024,3145.2,3143.8,1.45647329]
[1768312264601,0.99617024,3145.1,3144.2,0.13978595]
[1768312264798,0.99617024,3145.1,3142.8,0.00314508]
[1768312264799,0.00262722,3145.8,3144.5,0.13218866]
[1768312265005,0.99612959,3145.7,3144.5,0.13218866]
[1768312265201,0.99612959,3145.6,3144.5,0.13218866]
[1768312265393,0.99612959,3145.5,3144.5,0.13218866]
[1768312265593,0.99612959,3145.4,3144.5,0.13218866]
[1768312265798,0.00262722,3145.8,3144.5,0.13218866]
[1768312266106,0.9960283,3145.7,3144.5,0.13218866]
[1768312266301,0.9960283,3145.6,3144.5,0.13218866]
[1768312266497,0.9960283,3145.5,3144.5,0.13218866]
[1768312266698,0.00262722,3145.8,3145.1,0.13218866]
[1768312266898,0.00262722,3145.8,3145.1,0.13594288]
[1768312267299,0.00262722,3145.8,3145.1,0.00375422]
[1768312269104,0.00262722,3145.8,3145.1,0.13594288]
[1768312274205,0.15905,3146.7,3145.1,0.13594288]
[1768312274406,0.9936605,3146.6,3145.1,0.13594288]
[1768312274707,0.9936605,3146.5,3145.3,0.13399169]
[1768312275013,0.9936605,3146.4,3145.3,0.13399169]
[1768312275215,1.45647329,3147.1,3145.3,0.13399169]
[1768312275216,1.45647329,3146.8,3145.3,0.13399169]
[1768312275514,0.00336749,3146.4,3145.3,0.13399169]
[1768312282419,1.45984078,3146.4,3145.3,0.13399169]
[1768312282720,1.45647329,3146.1,3145.1,0.00375422]
[1768312284819,0.15908,3146.2,3145.1,0.00375422]
[1768312285025,0.99235103,3146.1,3145.1,0.00375422]
[1768312285226,1.61555329,3146.2,3145.1,0.00375422]
[1768312285523,0.99245577,3146.1,3145.1,0.13774591]
[1768312285723,0.15908,3146.2,3145.1,0.13774591]
[1768312285921,0.99244317,3146.1,3145.1,0.13774591]
[1768312286122,0.15908,3146.2,3145.1,0.13774591]
[1768312286323,0.99303163,3146.1,3145.1,0.13774591]
[1768312286522,0.15908,3146.2,3145.1,0.13774591]
[1768312286724,0.99303125,3146.1,3145.1,0.13774591]
[1768312286928,0.15908,3146.2,3145.1,0.13774591]
[1768312287121,0.99302802,3146.1,3145.1,0.13774591]
[1768312287321,0.99302802,3146.0,3145.1,0.13774591]
[1768312287521,0.15908,3146.2,3145.1,0.13774591]
[1768312287726,0.99363588,3146.1,3145.1,0.13774591]
[1768312287922,0.99363588,3146.0,3145.1,0.13774591]
[1768312288126,0.15908,3146.2,3145.1,0.13774591]
[1768312288326,0.99430676,3146.1,3145.1,0.13774591]
[1768312288515,0.99430676,3146.0,3145.1,0.13774591]
[1768312288719,0.15908,3146.2,3145.1,0.13774591]
[1768312288915,0.99431146,3146.1,3145.1,0.13774591]
[1768312289125,0.99431146,3146.0,3145.1,0.13774591]
[1768312289326,0.99431146,3145.9,3145.1,0.13774591]
[1768312289624,0.00336749,3146.4,3145.1,0.13774591]
[1768312289830,0.9950851,3146.3,3145.1,0.13774591]
[1768312290126,0.9950851,3146.2,3145.1,0.13774591]
[1768312290323,0.9950851,3146.1,3145.1,0.13774591]
[1768312290530,0.00336749,3146.4,3145.1,0.13774591]
[1768312290725,0.99513723,3146.3,3145.1,0.13774591]
[1768312290925,0.99513723,3146.2,3145.1,0.13774591]
[1768312291125,0.00336749,3146.4,3145.1,0.13774591]
[1768312291322,0.99518436,3146.3,3145.1,0.13774591]
[1768312291518,0.99518436,3146.2,3145.1,0.13774591]
[1768312291722,0.00336749,3146.4,3145.1,0.13774591]
[1768312291920,0.99553778,3146.3,3145.1,0.13774591]
[1768312292132,0.99553778,3146.2,3145.1,0.13774591]
[1768312292328,0.99553778,3146.1,3145.1,0.13774591]
[1768312292528,0.00336749,3146.4,3145.1,0.13774591]
[1768312292732,0.99592305,3146.3,3145.1,0.13774591]
[1768312293030,0.99592305,3146.2,3145.1,0.13774591]
[1768312293234,0.99592305,3146.1,3145.1,0.13774591]
[1768312293421,0.00336749,3146.4,3145.1,0.13774591]
[1768312293627,0.00336749,3146.4,3145.2,0.13399169]
[1768312298334,0.99682634,3146.3,3145.2,0.13399169]
[1768312298631,0.00336749,3146.4,3145.2,0.13399169]
[1768312298830,0.99684692,3146.3,3145.2,0.13399169]
[1768312299032,0.00336749,3146.4,3145.2,0.13399169]
[1768312299334,0.00336749,3146.4,3145.1,0.00375422]
[1768312299335,0.99683599,3146.3,3145.1,0.00375422]
[1768312299535,0.99683599,3146.2,3145.1,0.00375422]
[1768312299736,0.99683599,3146.1,3145.1,0.00375422]
[1768312299932,0.99683599,3146.0,3145.1,0.00375422]
[1768312300129,0.99683599,3145.9,3145.1,0.00375422]
[1768312300329,0.15907,3146.3,3145.1,0.00375422]
[1768312300531,0.99691377,3146.2,3145.1,0.00375422]
[1768312300732,0.99691377,3146.1,3145.1,0.00375422]
[1768312300925,0.99691377,3146.0,3145.1,0.00375422]
[1768312301130,0.99691377,3145.9,3145.1,0.00375422]
[1768312301429,0.99691377,3145.8,3145.1,0.00375422]
[1768312301630,0.15907,3146.3,3145.1,0.00375422]
[1768312301938,0.9969205,3146.2,3145.1,0.00375422]
[1768312302125,0.9969205,3146.1,3145.1,0.00375422]
[1768312302331,0.9969205,3146.0,3145.1,0.00375422]
[1768312302640,0.9969205,3145.9,3145.1,0.00375422]
[1768312302834,0.9969205,3145.8,3145.1,0.00375422]
[1768312303029,0.9969205,3145.7,3145.1,0.00375422]
[1768312303234,0.9969205,3145.6,3145.1,0.00375422]
[1768312303435,0.9969205,3145.5,3144.7,0.14642077]
[1768312303741,0.15908,3146.2,3144.7,0.14642077]
[1768312303932,0.99636418,3146.1,3144.7,0.14642077]
[1768312304134,0.99636418,3146.0,3144.7,0.14642077]
[1768312304348,0.99636418,3145.9,3144.7,0.14942326]
[1768312304536,0.99636418,3145.8,3144.7,0.14942326]
[1768312304835,0.99636418,3145.7,3144.7,0.14942326]
[1768312305036,0.99636418,3145.6,3144.7,0.14942326]
[1768312305238,0.99636418,3145.5,3144.7,0.14942326]
[1768312305436,0.15912,3145.3,3143.2,0.15923]
[1768312305738,0.99612805,3145.2,3143.2,0.15923]
[1768312306241,0.15914,3145.0,3143.0,3.182]
[1768312306445,1.15526805,3144.9,3143.2,0.00230191]
[1768312306644,0.99612805,3144.8,3143.2,0.00230191]
[1768312306835,0.99612805,3144.7,3143.2,0.00230191]
[1768312307037,0.15914,3144.9,3143.2,0.00230191]
[1768312307344,0.99483683,3144.8,3143.2,0.00230191]
[1768312307642,0.99483683,3144.7,3143.2,0.00230191]
[1768312307838,0.15914,3144.9,3143.2,0.00230191]
[1768312308042,0.99484822,3144.8,3143.2,0.00230191]
[1768312308239,0.99484822,3144.7,3143.2,0.00230191]
[1768312308541,0.15914,3144.9,3143.2,0.00230191]
[1768312308741,0.99419646,3144.8,3143.2,0.00230191]
[1768312308947,0.99419646,3144.7,3143.2,0.00230191]
[1768312309242,0.15914,3144.9,3143.2,0.00230191]
[1768312309444,0.99367546,3144.8,3143.2,0.00230191]
[1768312309640,0.15914,3144.9,3143.2,0.00230191]
[1768312309839,0.99367655,3144.8,3143.2,0.00230191]
[1768312310037,0.15914,3144.9,3143.2,0.00230191]
[1768312310239,0.9932503,3144.8,3143.2,0.00230191]
[1768312310441,0.15914,3144.9,3143.2,0.00230191]
[1768312310639,0.99325107,3144.8,3143.2,0.00230191]
[1768312310839,0.15914,3144.9,3143.2,0.00230191]
[1768312311039,0.99325074,3144.8,3143.2,0.00230191]
[1768312311246,0.15914,3144.9,3143.2,0.00230191]
[1768312311439,0.99291858,3144.8,3143.2,0.00230191]
[1768312311639,0.15914,3144.9,3143.2,0.00230191]
[1768312311840,0.99291858,3144.8,3143.2,0.00230191]
[1768312312035,0.15914,3144.9,3143.2,0.00230191]
[1768312312244,0.99260779,3144.8,3143.2,0.00230191]
[1768312312438,1.77699368,3144.8,3143.2,0.00230191]
[1768312312646,0.12516308,3144.7,3143.2,0.00230191]
[1768312313551,0.28431308,3144.7,3143.2,0.00230191]
[1768312313947,0.15915,3144.7,3143.2,0.00230191]
[1768312314155,0.15915,3144.7,3143.2,0.14872268]
[1768312315146,0.12497396,3145.3,3143.2,0.14872268]
[1768312315348,4.468,3145.4,3143.2,0.14872268]
[1768312315349,1.8109606,3145.1,3143.2,0.14872268]
[1768312315549,0.15914,3144.9,3143.2,0.14872268]
[1768312315743,0.99165536,3144.8,3143.2,0.14872268]
[1768312315943,0.99165536,3144.7,3143.2,0.14872268]
[1768312316150,0.15914,3144.9,3143.2,0.14872268]
[1768312316345,0.99141789,3144.8,3143.2,0.14872268]
[1768312316548,0.15915,3144.8,3143.2,0.14872268]
[1768312316850,0.99142256,3144.7,3143.2,0.14872268]
[1768312317052,1.8109806,3144.8,3143.2,0.14872268]
[1768312317346,0.99119236,3144.7,3143.2,0.14872268]
[1768312317546,1.8109806,3144.8,3143.2,0.14872268]
[1768312317747,0.99121317,3144.7,3143.2,0.14872268]
[1768312317948,1.8109806,3144.8,3143.2,0.14872268]
[1768312318157,0.99121341,3144.7,3143.2,0.14872268]
[1768312318349,1.8109806,3144.8,3143.2,0.14872268]
[1768312318655,0.99100836,3144.7,3143.2,0.14872268]
[1768312318858,1.8109806,3144.8,3143.2,0.14872268]
[1768312319052,0.99104606,3144.7,3143.2,0.14872268]
[1768312319357,0.99104606,3144.7,3143.2,0.00230191]
[1768312319358,0.28536421,3144.7,3143.2,0.00230191]
[1768312319659,0.15917,3144.4,3143.2,0.00230191]
[1768312319850,0.9909414,3144.3,3143.2,0.00230191]
[1768312320047,0.15917,3144.4,3143.2,0.00230191]
[1768312320248,0.99088019,3144.3,3143.2,0.00230191]
[1768312320458,0.15917,3144.4,3143.2,0.00230191]
[1768312320757,0.99088021,3144.3,3143.2,0.00230191]
[1768312320943,0.15919,3144.1,3143.2,0.00230191]
[1768312321146,0.15919,3143.9,3142.4,0.14642077]
[1768312321552,0.1592,3143.8,3141.8,0.14642077]
[1768312321861,0.1592,3143.7,3141.8,0.14642077]
[1768312322149,0.16193101,3143.7,3141.8,0.14929307]
[1768312322859,0.15921,3143.6,3141.8,0.14929307]
[1768312323355,1.6518306,3143.4,3141.8,0.14929307]
[1768312323562,0.15924,3143.0,3141.8,0.0028723]
[1768312325759,1.6518306,3142.8,3141.8,0.0028723]
[1768312326655,0.15924,3143.0,3141.8,0.0028723]
[1768312327343,1.285,3143.2,3141.8,0.0028723]
[1768312327651,0.15921,3143.5,3141.8,0.1395736]
[1768312328957,1.6518306,3143.2,3141.8,0.0028723]
[1768312329157,1.14775993,3143.1,3141.8,0.0028723]
[1768312329358,1.14797757,3143.0,3141.8,0.0028723]
[1768312329557,1.6518306,3142.8,3141.8,0.0028723]
[1768312332063,0.98906312,3142.7,3141.8,0.0028723]
[1768312332361,1.285,3142.6,3141.8,0.0028723]
[1768312333556,1.6518306,3142.4,3140.8,0.1367013]
[1768312333760,1.285,3142.3,3140.8,0.1367013]
[1768312334461,1.285,3142.3,3140.8,0.14029315]
[1768312334666,0.99028431,3142.2,3140.8,0.14029315]
[1768312334958,1.285,3142.3,3140.8,0.14029315]
[1768312335158,2.64212188,3142.2,3140.8,0.14029315]
[1768312335362,0.99029128,3142.1,3140.8,0.14029315]
[1768312336366,1.6518306,3141.8,3140.8,0.14029315]
[1768312336660,1.6518306,3141.8,3140.3,0.13729573]
[1768312336661,0.99043742,3141.7,3140.3,0.13729573]
[1768312336855,0.99043742,3141.6,3140.3,0.13729573]
[1768312337654,0.99043742,3141.6,3140.3,0.14112993]
[1768312338354,1.285,3141.5,3140.3,0.14112993]
[1768312338562,1.28889936,3141.5,3140.3,0.14112993]
[1768312340456,0.00389936,3141.5,3140.3,0.14112993]
[1768312340658,1.285,3141.4,3140.3,0.14112993]
[1768312340857,0.00389936,3141.5,3140.3,0.14112993]
[1768312341261,0.00389936,3141.5,3140.3,0.30049993]
[1768312341469,0.00389936,3141.5,3140.4,0.13729573]
[1768312342767,1.6518306,3142.6,3140.3,6.0038342]
[1768312342768,1.8110806,3142.7,3140.6,0.13729573]
[1768312342967,2.27465878,3142.6,3140.6,0.29665573]
[1768312343268,0.98965878,3142.5,3140.9,0.13729573]
[1768312343464,0.98965878,3142.4,3140.9,0.13729573]
[1768312343665,0.98965878,3142.3,3140.9,0.13729573]
[1768312343867,0.00292869,3142.5,3140.9,0.13729573]
[1768312344162,0.99004146,3142.4,3140.9,0.13729573]
[1768312344358,0.99004146,3142.3,3140.9,0.13729573]
[1768312344559,0.99004146,3142.2,3140.9,0.13729573]
[1768312344856,0.00292869,3142.5,3140.9,0.13729573]
[1768312345057,0.99053856,3142.4,3140.9,0.13729573]
[1768312345257,0.99053856,3142.3,3140.9,0.13729573]
[1768312345464,0.99053856,3142.2,3140.9,0.13729573]
[1768312345661,0.00292869,3142.5,3140.9,0.13729573]
[1768312345864,0.00292869,3142.5,3140.3,0.0038342]
[1768312345865,0.99108906,3142.4,3141.1,0.13729573]
[1768312346165,0.00292869,3142.5,3141.1,0.13729573]
[1768312346361,0.99161803,3142.4,3141.1,0.13729573]
[1768312346664,0.00292869,3142.5,3141.2,0.13729573]
[1768312347265,0.99241206,3142.4,3141.2,0.13729573]
[1768312347466,0.00292869,3142.5,3141.2,0.13729573]
[1768312347861,0.99256296,3142.4,3141.2,0.13729573]
[1768312348167,0.99256296,3142.3,3141.2,0.13729573]
[1768312348473,0.00292869,3142.5,3141.2,0.13729573]
[1768312348767,0.9934728,3142.4,3141.2,0.13729573]
[1768312348960,0.00292869,3142.5,3141.2,0.13729573]
[1768312349161,0.99347378,3142.4,3141.2,0.13729573]
[1768312349362,0.99347378,3142.3,3141.2,0.13729573]
[1768312349664,0.00292869,3142.5,3141.2,0.13729573]
[1768312349863,0.99456469,3142.4,3141.2,0.13729573]
[1768312350069,0.99456469,3142.3,3141.2,0.13729573]
[1768312350268,0.00292869,3142.5,3141.4,0.13729573]
[1768312350465,0.99459285,3142.4,3141.4,0.13729573]
[1768312350668,0.00292869,3142.5,3141.6,0.29660573]
[1768312351069,0.95731186,3143.4,3141.6,0.29660573]
[1768312351365,1.60145868,3143.3,3141.6,0.15931]
[1768312351572,0.14108282,3143.3,3141.6,0.15931]
[1768312351962,0.14505938,3143.3,3141.6,0.15931]
[1768312352469,0.14505938,3143.3,3141.4,1.46037586]
[1768312352470,0.14505938,3143.3,3141.7,0.1593]
[1768312352765,0.14108282,3143.1,3141.7,0.1593]
[1768312352968,0.14108282,3142.8,3141.1,1.46037586]
[1768312353165,0.14108282,3142.8,3141.2,0.15933]
[1768312353970,0.14108282,3142.8,3141.1,1.46037586]
[1768312354158,0.14108282,3142.8,3141.1,0.13398077]
[1768312354359,0.14108282,3143.2,3141.5,0.15931]
[1768312355975,0.14108282,3143.2,3140.3,0.0038342]
[1768312355976,1.6025565,3142.5,3140.9,0.15934]
[1768312356675,0.14218064,3142.4,3140.9,0.15934]
[1768312362081,0.14218064,3142.4,3141.1,1.46037586]
[1768312362279,0.14218064,3142.8,3141.2,0.15933]
[1768312362480,0.14218064,3142.8,3141.4,1.46037586]
[1768312362679,0.99321271,3142.7,3141.4,1.46037586]
[1768312362981,0.99321271,3142.6,3141.4,1.46037586]
[1768312363193,0.14218064,3142.8,3141.3,0.15932]
[1768312363489,0.99318924,3142.7,3141.3,0.15932]
[1768312363689,0.99318924,3142.6,3141.3,0.15932]
[1768312363885,0.14218064,3142.7,3141.3,0.15932]
[1768312364087,0.99048409,3142.6,3141.3,0.15932]
[1768312364292,0.14218064,3142.7,3141.3,0.15932]
[1768312364585,0.99043845,3142.6,3141.3,0.15932]
[1768312364794,0.14218064,3142.7,3141.3,0.15932]
[1768312365881,0.14218064,3142.1,3140.4,0.13515107]
[1768312366097,0.14218064,3142.0,3140.3,3.3492042]
[1768312366290,0.14218064,3142.0,3140.4,0.15937]
[1768312366490,0.14218064,3142.0,3140.6,0.15936]
[1768312366889,1.46037586,3142.7,3140.8,1.46037586]
[1768312367091,0.14218064,3142.4,3140.8,1.46037586]
[1768312367296,0.99060072,3142.3,3140.8,1.46037586]
[1768312367488,0.14218064,3142.4,3140.8,1.46037586]
[1768312367688,0.99097343,3142.3,3140.8,1.61972586]
[1768312367893,0.14218064,3142.4,3140.8,1.61972586]
[1768312368092,0.99097326,3142.3,3140.8,1.61972586]
[1768312368285,0.14218064,3142.3,3140.8,0.15935]
[1768312368689,0.14218064,3142.1,3140.8,0.15935]
[1768312368887,0.14218064,3142.0,3140.3,3.3492042]
[1768312369196,0.14218064,3142.0,3140.4,0.15937]
[1768312369586,0.14218064,3142.0,3140.5,0.15936]
[1768312369896,0.14218064,3142.0,3140.6,0.15936]
[1768312370090,0.14218064,3142.0,3140.7,0.15935]
[1768312372497,0.14218064,3142.4,3140.7,0.15935]
[1768312372797,0.99295838,3142.3,3140.7,0.15935]
[1768312372987,0.99295838,3142.2,3140.7,0.15935]
[1768312373187,0.99295838,3142.1,3140.7,0.15935]
[1768312373387,0.14218064,3142.4,3140.7,0.15935]
[1768312373588,0.99300289,3142.3,3140.7,0.15935]
[1768312373793,0.14218064,3142.4,3140.5,0.13093884]
[1768312373995,0.14218064,3142.4,3141.0,1.46037586]
[1768312374198,0.14218064,3142.4,3141.1,0.15933]
[1768312375291,0.14218064,3142.3,3141.1,0.15933]
[1768312375488,0.14218064,3142.3,3140.5,0.15936]
[1768312375891,0.14218064,3142.3,3140.6,0.15936]
[1768312376091,0.14218064,3142.1,3140.6,0.15936]
[1768312376593,0.99315646,3142.0,3140.6,0.15936]
[1768312376795,0.99316642,3141.9,3140.6,0.15936]
[1768312377096,0.14218064,3142.1,3140.6,0.15936]
[1768312377296,0.99316625,3142.0,3140.6,0.15936]
[1768312377594,0.99316625,3141.9,3140.6,0.15936]
[1768312377899,0.14218064,3142.1,3140.6,0.15936]
[1768312378094,0.99305264,3142.0,3140.4,6.00937586]
[1768312378301,0.14218064,3143.0,3141.1,1.46037586]
[1768312378499,0.14218064,3142.8,3141.1,1.46037586]
[1768312378701,0.14218064,3142.6,3141.1,1.46037586]
[1768312378900,0.99295655,3142.5,3141.1,1.46037586]
[1768312379102,0.99295655,3142.4,3141.1,1.46037586]
[1768312379402,0.99295655,3142.3,3141.0,1.61971586]
[1768312379604,0.14218064,3142.6,3141.0,1.61971586]
[1768312379794,0.99295159,3142.5,3141.0,1.61971586]
[1768312379994,0.14218064,3142.6,3141.3,1.46037586]
[1768312380491,0.14218064,3143.1,3141.3,1.46037586]
[1768312380693,0.99287846,3143.0,3141.6,1.46037586]
[1768312380892,0.99287846,3142.9,3141.1,0.12948045]
[1768312381088,0.99287846,3142.9,3140.4,4.549]
[1768312381089,0.00397656,3143.3,3141.3,0.12948045]
[1768312381290,0.99274928,3143.2,3141.9,0.15929]
[1768312381495,0.00397656,3143.3,3141.9,0.15929]
[1768312383087,0.00397656,3143.3,3142.1,1.46037586]
[1768312383293,0.00397656,3143.3,3141.9,0.15929]
[1768312385201,0.00397656,3143.3,3141.8,1.46037586]
[1768312385400,0.00397656,3143.3,3142.7,1.46037586]
[1768312385704,0.13411407,3144.0,3142.7,0.00394424]
[1768312385902,0.99095067,3143.9,3142.7,0.00394424]
[1768312386096,0.13411407,3144.0,3142.7,0.00394424]
[1768312386506,0.13741752,3144.0,3142.7,0.00394424]
[1768312390601,0.13741752,3144.0,3142.7,0.16319424]
[1768312391298,0.13741752,3144.0,3142.8,0.15925]
[1768312392311,0.13741752,3144.0,3143.0,1.46037586]
[1768312392705,0.00330345,3144.0,3143.0,1.46037586]
[1768312393210,0.00330345,3144.0,3143.0,1.61961586]
[1768312393797,0.00330345,3144.0,3142.8,3.185]
[1768312393798,1.46037586,3145.2,3143.3,1.46037586]
[1768312394004,0.13411407,3145.0,3143.3,1.46037586]
[1768312394202,0.13411407,3145.0,3143.3,1.61959586]
[1768312394399,0.13411407,3145.0,3143.6,1.46037586]
[1768312394807,0.13411407,3145.0,3143.4,0.15922]
[1768312395015,0.13758457,3145.0,3143.4,0.15922]
[1768312395909,0.13758457,3145.0,3143.6,1.46037586]
[1768312396408,0.0034705,3145.0,3143.7,0.1592]
[1768312399515,0.0034705,3145.0,3144.1,1.46037586]
[1768312400010,0.14560801,3146.2,3144.4,1.46037586]
[1768312400217,0.14560801,3146.0,3144.1,1.61955586]
[1768312400715,0.14560801,3146.0,3144.4,1.46037586]
[1768312400915,0.14961755,3146.0,3144.4,1.46037586]
[1768312401613,0.14961755,3146.0,3144.3,0.15917]
[1768312402511,0.00400954,3146.0,3144.5,1.46037586]
[1768312402715,0.00400954,3146.0,3144.2,1.48954795]
[1768312402716,0.00400954,3146.0,3144.6,0.15916]
[1768312402912,0.14961755,3146.0,3144.6,0.15916]
[1768312403220,0.00400954,3146.0,3144.6,0.15916]
[1768312403826,0.00400954,3146.0,3144.8,1.46037586]
[1768312404516,0.00400954,3146.0,3144.6,0.15916]
[1768312404517,0.00400954,3146.0,3145.1,1.46037586]
[1768312404823,0.00400954,3146.0,3145.1,1.46311996]
[1768312405321,0.14560801,3146.7,3145.4,1.46037586]
[1768312405713,1.46037586,3147.2,3145.4,1.46037586]
[1768312405714,0.14560801,3147.2,3145.4,1.46037586]
[1768312406422,0.14787688,3147.2,3145.4,1.61948586]
[1768312406623,0.14560801,3147.1,3145.4,1.61948586]
[1768312406825,0.00226887,3147.2,3145.5,0.15911]
[1768312407209,0.14787688,3147.2,3145.5,0.15911]
[1768312407414,0.00226887,3147.2,3145.7,1.46037586]
[1768312408322,0.14787688,3147.2,3145.5,0.15911]
[1768312409820,0.14560801,3146.9,3145.5,0.15911]
[1768312416428,0.00226887,3147.2,3146.1,1.65109559]
[1768312416734,0.00226887,3147.2,3146.0,0.15908]
[1768312416930,0.00226887,3147.2,3145.5,1.65109559]
[1768312416931,0.00226887,3147.2,3146.2,0.15907]
[1768312418023,0.13501861,3147.8,3146.5,1.65109559]
[1768312418427,0.13501861,3148.6,3146.5,1.81015559]
[1768312418628,0.13501861,3148.4,3146.5,1.81015559]
[1768312418828,0.13501861,3148.2,3146.5,1.81015559]
[1768312419033,0.13809793,3148.2,3146.5,1.81015559]
[1768312419234,0.13809793,3148.2,3146.5,0.15906]
[1768312421838,0.13809793,3148.2,3146.6,0.15905]
[1768312422239,0.13809793,3148.2,3146.7,0.15905]
[1768312422936,0.00307932,3148.2,3146.9,0.15904]
[1768312424140,0.00307932,3148.2,3147.1,1.65109559]
[1768312424334,0.00307932,3148.2,3146.9,0.15904]
[1768312425232,0.00307932,3148.2,3147.0,0.15904]
[1768312425432,0.13501861,3148.7,3147.5,1.65109559]
[1768312425631,0.13501861,3149.1,3147.5,1.65109559]
[1768312425934,0.98165802,3149.0,3147.5,1.65109559]
[1768312426136,0.13501861,3149.1,3147.5,1.65109559]
[1768312426331,1.17937912,3149.5,3147.6,3.181]
[1768312426537,1.11644937,3149.4,3147.6,3.18397179]
[1768312426734,0.13501861,3149.4,3147.6,3.18397179]
[1768312428641,0.13501861,3149.4,3147.6,3.34297179]
[1768312429936,0.13501861,3149.4,3147.7,4.536]
[1768312430130,0.13501861,3149.4,3147.8,1.356]
[1768312434143,0.13501861,3149.4,3147.9,1.356]
[1768312434539,0.13501861,3149.4,3147.6,0.16197179]
[1768312434739,0.13501861,3149.4,3147.7,0.537]
[1768312434939,0.13501861,3149.4,3147.6,0.16197179]
[1768312435140,0.13501861,3149.4,3147.7,1.356]
[1768312435440,0.13501861,3149.2,3147.6,0.00297179]
[1768312435638,0.13501861,3148.9,3147.6,0.00297179]
[1768312436150,6.13501861,3148.9,3147.6,0.00297179]
[1768312436451,0.13501861,3148.8,3147.6,0.00297179]
[1768312437044,0.13501861,3148.5,3146.6,0.439]
[1768312437248,0.13501861,3148.3,3146.4,0.15907]
[1768312437445,0.13501861,3148.3,3146.5,1.355]
[1768312437744,0.13501861,3148.3,3146.6,0.15906]
[1768312439439,0.13501861,3148.3,3146.7,0.15905]
[1768312439848,0.13501861,3148.3,3146.5,0.79518013]
[1768312439849,0.13501861,3148.3,3146.9,0.15904]
[1768312442948,0.13501861,3148.3,3146.5,0.91323002]
[1768312442949,0.13501861,3148.3,3146.7,0.15905]
[1768312444243,1.12043128,3148.2,3146.7,0.15905]
[1768312444549,0.13501861,3148.2,3146.7,0.15905]
[1768312445344,0.98617258,3148.1,3146.7,0.15905]
[1768312445652,0.13501861,3148.2,3146.7,0.15905]
[1768312445853,0.98617569,3148.1,3146.7,0.15905]
[1768312446060,0.13501861,3148.2,3146.7,0.15905]
[1768312446248,0.13363773,3148.0,3146.7,0.15905]
[1768312447654,0.13363773,3148.0,3146.8,0.15905]
[1768312448152,0.13363773,3148.7,3146.8,0.15905]
[1768312448357,0.13363773,3148.5,3146.8,0.15905]
[1768312448567,1.12080303,3148.4,3146.8,0.15905]
[1768312448850,0.9871653,3148.3,3146.8,0.15905]
[1768312449743,1.12080303,3148.3,3146.9,0.15904]
[1768312450052,0.9871653,3148.2,3147.1,0.15903]
[1768312450246,0.13363773,3148.3,3147.1,0.15903]
[1768312454952,0.13363773,3148.3,3147.2,0.15902]
[1768312455848,0.13470022,3148.7,3147.4,0.15901]
[1768312456042,0.98758919,3148.6,3147.4,0.15901]
[1768312456252,0.13470022,3148.7,3147.4,0.15901]
[1768312463067,0.13470022,3148.5,3146.8,0.15904]
[1768312463251,0.13470022,3148.5,3146.8,1.51304]
[1768312463555,0.13470022,3148.5,3146.8,0.15904]
[1768312463753,0.13470022,3148.5,3147.0,0.15903]
[1768312465154,1.12457982,3148.4,3147.0,0.15903]
[1768312465361,0.13470022,3148.4,3147.0,0.15903]
[1768312466357,0.98999268,3148.3,3147.0,0.15903]
[1768312466561,0.13470022,3148.2,3147.0,0.15903]
[1768312468149,0.13470022,3148.2,3146.5,0.00318013]
[1768312468465,0.13470022,3148.0,3146.7,0.15905]
[1768312469362,0.13470022,3148.0,3146.5,1.35618013]
[1768312469363,0.13470022,3148.0,3146.8,0.15904]
[1768312469555,0.13470022,3148.4,3146.8,0.15904]
[1768312469756,1.12473078,3148.3,3146.8,0.15904]
[1768312470049,1.12473078,3148.3,3146.9,0.15904]
[1768312470050,0.99003056,3148.2,3146.9,0.15904]
[1768312470264,0.13470022,3148.3,3146.9,0.15904]
[1768312470466,0.13470022,3148.7,3147.1,1.65109559]
[1768312470665,0.98992364,3148.6,3147.4,0.15901]
[1768312470866,0.13470022,3148.7,3147.4,0.15901]
[1768312471064,0.13470022,3148.7,3147.6,0.159]
[1768312471363,0.13470022,3149.4,3147.6,0.159]
[1768312471554,0.13470022,3149.2,3147.6,0.159]
[1768312471751,0.13470022,3149.0,3147.6,0.159]
[1768312471964,1.12451294,3148.9,3147.6,0.159]
[1768312472168,0.98981272,3148.8,3147.6,0.159]
[1768312472565,0.13470022,3148.7,3147.6,0.159]
[1768312472769,0.13470022,3148.7,3147.1,1.51203]
[1768312473066,0.13470022,3148.7,3147.2,0.15902]
[1768312473574,0.13470022,3148.7,3147.3,0.15902]
[1768312473760,0.13470022,3148.7,3147.4,0.15901]
[1768312474168,0.13470022,3148.7,3147.5,0.15901]
[1768312474664,0.14132833,3149.4,3147.6,1.45516171]
[1768312474968,0.14132833,3149.2,3147.7,0.159]
[1768312475161,1.13104204,3149.1,3147.7,0.159]
[1768312475462,0.98971371,3149.0,3148.1,1.07748334]
[1768312475767,1.21881167,3149.4,3148.3,1.07748334]
[1768312475962,0.98955216,3149.3,3148.3,1.07748334]
[1768312476166,0.98955216,3149.2,3148.3,1.07748334]
[1768312476357,1.07748334,3149.2,3148.3,1.07748334]
[1768312477469,1.07748334,3149.2,3147.2,0.12185679]
[1768312477470,1.07748334,3148.5,3147.4,0.15901]
[1768312477665,1.21881167,3148.5,3147.5,1.07748334]
[1768312477867,1.21881167,3148.5,3147.4,0.15901]
[1768312478066,1.21881167,3148.5,3147.4,1.23649334]
[1768312478267,0.14132833,3148.5,3147.6,1.07748334]
[1768312478465,0.14132833,3148.5,3147.8,1.07748334]
[1768312478668,1.07748334,3148.8,3147.8,1.07748334]
[1768312479365,1.07748334,3148.6,3147.6,1.07748334]
[1768312479568,1.21881167,3148.6,3147.6,1.07748334]
[1768312480071,1.07748334,3148.2,3147.4,0.15901]
[1768312480273,1.21881167,3148.4,3147.4,1.23649334]
[1768312481270,0.14132833,3148.4,3147.4,1.23649334]
[1768312481868,0.14132833,3148.4,3146.9,1.352]
[1768312481869,1.21881167,3148.1,3146.9,2.42948334]
[1768312482068,1.21881167,3148.1,3147.1,1.07748334]
[1768312482264,0.14132833,3148.1,3146.9,1.352]
[1768312482572,0.14132833,3147.9,3146.8,0.15904]
[1768312482873,0.14132833,3147.9,3146.9,1.07748334]
[1768312486172,1.21881167,3147.8,3146.9,1.07748334]
[1768312487381,0.14132833,3147.8,3146.9,1.07748334]
[1768312488172,1.21881167,3147.6,3146.5,2.43266347]
[1768312488981,1.21881167,3147.6,3146.7,1.07748334]
[1768312489180,0.14132833,3147.6,3146.7,1.07748334]
[1768312489379,0.14132833,3147.6,3146.5,1.35518013]
[1768312491076,0.14132833,3148.2,3146.5,1.35518013]